lending/lending_fUSD_20251121
["ID","MTS","AMOUNT","RATE_DAILY","PERIOD"]
[394571617,1763724634093,-220.0,0.0001582,2]
[394571618,1763724634103,-150.0,0.00015854,2]
[394571619,1763724634113,-314.04047486,0.00015873,2]
[394571620,1763724634123,-151.0,0.00015882,2]
[394571621,1763724634132,-151.0,0.00015882,2]
[394571622,1763724634141,-151.0,0.00015882,2]
[394571623,1763724634151,-151.0,0.00015882,2]
[394571624,1763724634160,-151.0,0.00015882,2]
[394571625,1763724634170,-151.0,0.00015882,2]
[394571626,1763724634179,-151.0,0.00015882,2]
[394571627,1763724634188,-151.0,0.00015882,2]
[394571628,1763724634198,-151.0,0.00015882,2]
[394571629,1763724634207,-151.0,0.00015882,2]
[394571630,1763724634216,-151.0,0.00015882,2]
[394571631,1763724634225,-151.0,0.00015882,2]
[394571632,1763724634234,-151.0,0.00015882,2]
[394571633,1763724634244,-151.0,0.00015882,2]
[394571634,1763724634253,-151.0,0.00015882,2]
[394571635,1763724634262,-151.0,0.00015882,2]
[394571636,1763724634271,-151.0,0.00015882,2]
[394571637,1763724634281,-151.0,0.00015882,2]
[394571638,1763724634291,-151.0,0.00015882,2]
[394571639,1763724634301,-151.0,0.00015882,2]
[394571640,1763724634312,-500.0,0.0001589,2]
[394571641,1763724634322,-500.0,0.0001589,2]
[394571642,1763724634331,-500.0,0.0001589,2]
[394571643,1763724634341,-500.0,0.0001589,2]
[394571644,1763724634350,-500.0,0.0001589,2]
[394571645,1763724634359,-620.05063347,0.0001589,2]
[394571646,1763724634369,-500.0,0.0001589,2]
[394571647,1763724634379,-396.17978918,0.0001589,2]
[394571648,1763724634389,-500.0,0.0001589,2]
[394571649,1763724634398,-405.55530427,0.0001589,2]
[394571650,1763724634409,-500.0,0.0001589,2]
[394571651,1763724634419,-500.0,0.0001589,2]
[394571652,1763724634428,-500.0,0.0001589,2]
[394571653,1763724634438,-500.0,0.0001589,2]
[394571654,1763724634448,-150.0,0.0001589,2]
[394571655,1763724634457,-500.0,0.0001589,2]
[394571656,1763724634467,-500.0,0.0001589,2]
[394571657,1763724634481,-1561.99,0.0001589,2]
[394571658,1763724634491,-500.0,0.0001589,2]
[394571659,1763724634503,-500.0,0.0001589,2]
[394571660,1763724634514,-500.0,0.0001589,2]
[394571661,1763724634524,-500.0,0.0001589,2]
[394571662,1763724634534,-500.0,0.0001589,2]
[394571663,1763724634544,-500.0,0.0001589,2]
[394571664,1763724634554,-500.0,0.0001589,2]
[394571665,1763724634563,-500.0,0.0001589,2]
[394571666,1763724634573,-499.99,0.0001589,2]
[394571667,1763724634582,-500.0,0.0001589,2]
[394571668,1763724634591,-500.0,0.0001589,2]
[394571669,1763724634601,-422.23,0.0001589,2]
[394571670,1763724634611,-38451.89,0.0001589,2]
[394571671,1763724634620,-2378.53,0.0001589,2]
[394571672,1763724634630,-909.86,0.0001589,2]
[394571673,1763724634639,-909.86,0.0001589,2]
[394571674,1763724634650,-909.86,0.0001589,2]
[394571675,1763724634659,-500.0,0.0001589,2]
[394571676,1763724634669,-500.0,0.0001589,2]
[394571677,1763724634678,-36605.4285894,0.0001589,2]
[394571678,1763724634688,-500.0,0.0001589,2]
[394571679,1763724634697,-500.0,0.0001589,2]
[394571680,1763724634706,-500.0,0.0001589,2]
[394571681,1763724634716,-500.0,0.0001589,2]
[394571682,1763724634726,-500.0,0.0001589,2]
[394571683,1763724634736,-500.0,0.0001589,2]
[394571684,1763724634745,-30693.08329101,0.00015891,2]
[394571685,1763724634758,-6428.91419419,0.00015891,2]
[394571686,1763724634769,-85509.6522313,0.00015891,2]
[394571687,1763724634779,-999.99,0.00015891,2]
[394571688,1763724634788,-3941.21116018,0.00015891,2]
[394571689,1763724634827,-291.36469732,0.00015891,2]
[394571690,1763724634838,-5713.0138326,0.00015891,2]
[394571691,1763724634869,-54.4003099,0.00015891,2]
[394571692,1763724634878,-554.06197818,0.00015891,2]
[394571693,1763724634889,-310.05,0.00015891,2]
[394571694,1763724634900,-281.48771192,0.00015891,2]
[394571696,1763724638115,6315.68,7.673e-05,2]
[394571697,1763724638308,3684.33,8.077e-05,2]
[394571698,1763724638331,2631.35,8.077e-05,2]
[394571700,1763724638382,-500.0,0.00015889,2]
[394571701,1763724638392,-500.0,0.00015889,2]
[394571703,1763724638402,-500.0,0.00015889,2]
[394571705,1763724638411,-500.0,0.00015889,2]
[394571706,1763724638421,-500.0,0.00015889,2]
[394571707,1763724638431,-500.0,0.00015889,2]
[394571708,1763724638440,-538.27549914,0.00015889,2]
[394571709,1763724638450,-500.0,0.00015889,2]
[394571710,1763724638460,-500.0,0.00015889,2]
[394571711,1763724638469,-500.0,0.00015889,2]
[394571712,1763724638479,-592.13143669,0.00015889,2]
[394571713,1763724638489,-398.81779342,0.00015889,2]
[394571714,1763724638499,-205.13397946,0.00015889,2]
[394571715,1763724638508,-500.0,0.00015889,2]
[394571716,1763724638518,-500.0,0.00015889,2]
[394571717,1763724638527,-500.0,0.00015889,2]
[394571718,1763724638537,-500.0,0.00015889,2]
[394571719,1763724638546,-500.0,0.00015889,2]
[394571720,1763724638556,-500.0,0.00015889,2]
[394571721,1763724638565,-500.0,0.00015889,2]
[394571722,1763724638575,-500.0,0.00015889,2]
[394571723,1763724638584,-500.0,0.00015889,2]
[394571724,1763724638594,-500.0,0.00015889,2]
[394571725,1763724638603,-500.0,0.00015889,2]
[394571726,1763724638612,-500.0,0.00015889,2]
[394571727,1763724638622,-500.0,0.00015889,2]
[394571728,1763724638631,-500.0,0.00015889,2]
[394571729,1763724638640,-500.0,0.00015889,2]
[394571730,1763724638650,-500.0,0.00015889,2]
[394571731,1763724638660,-500.0,0.00015889,2]
[394571732,1763724638669,-500.0,0.00015889,2]
[394571733,1763724638678,-500.0,0.00015889,2]
[394571734,1763724638687,-500.0,0.00015889,2]
[394571735,1763724638697,-500.0,0.00015889,2]
[394571736,1763724638707,-500.0,0.00015889,2]
[394571737,1763724638716,-500.0,0.00015889,2]
[394571738,1763724638725,-500.0,0.00015889,2]
[394571739,1763724638735,-500.0,0.00015889,2]
[394571740,1763724638744,-500.0,0.00015889,2]
[394571741,1763724638754,-500.0,0.00015889,2]
[394571742,1763724638763,-500.0,0.00015889,2]
[394571743,1763724638772,-500.0,0.00015889,2]
[394571744,1763724638782,-624.43,0.0001589,2]
[394571745,1763724638791,-16.0803099,0.00015891,2]
[394571746,1763724638802,-150.99,0.00015891,2]
[394571747,1763724638811,-83286.81,0.00015891,2]
[394571748,1763724638821,-9999.99,0.00015891,2]
[394571749,1763724638831,-1455.95,0.00015891,2]
[394571750,1763724638841,-569.27,0.00015891,2]
[394571751,1763724638851,-299.99,0.00015891,2]
[394571752,1763724638860,-150.99,0.00015891,2]
[394571753,1763724638870,-13876.13,0.00015891,2]
[394571754,1763724638879,-9999.99,0.00015891,2]
[394571755,1763724638889,-9999.99,0.00015891,2]
[394571756,1763724638898,-2950.86,0.00015891,2]
[394571757,1763724638908,-9999.99,0.00015891,2]
[394571758,1763724638918,-1987.46,0.00015891,2]
[394571759,1763724638928,-1006.98638256,0.00015891,2]
[394571760,1763724638938,-200.0,0.00015891,2]
[394571761,1763724638948,-500.0,0.00015891,2]
[394571762,1763724638957,-500.0,0.00015891,2]
[394571763,1763724638968,-624.43,0.00015891,2]
[394571764,1763724638979,-624.43,0.00015891,2]
[394571765,1763724638991,-73885.0731817,0.00015892,2]
[394571766,1763724639004,-432383.3979633,0.00015892,2]
[394571767,1763724639013,-1000.0,0.00015896,2]
[394571768,1763724639023,-151.0,0.00015899,2]
[394571769,1763724639033,-151.0,0.00015899,2]
[394571770,1763724639043,-151.0,0.000159,2]
[394571771,1763724639053,-356.22348299,0.000159,2]
[394571772,1763724639063,-356.22348299,0.000159,2]
[394571773,1763724639073,-356.22348299,0.000159,2]
[394571774,1763724639083,-151.0,0.00015901,2]
[394571775,1763724639092,-151.0,0.00015911,2]
[394571776,1763724639101,-151.0,0.00015912,2]
[394571777,1763724639111,-16356.52799709,0.00015914,2]
[394571778,1763724639121,-150.0,0.00015925,2]
[394571779,1763724639131,-150.0,0.00015967,2]
[394571780,1763724639140,-198.92255138,0.00015977,2]
[394571781,1763724639151,-500.0,0.00015995,2]
[394571782,1763724639161,-500.0,0.00015995,2]
[394571783,1763724639170,-4841.56370201,0.00016,2]
[394571784,1763724639181,-16356.52799709,0.00016037,2]
[394571785,1763724639190,-200.0,0.0001605,2]
[394571786,1763724639200,-478.73542746,0.00016092,2]
[394571787,1763724639210,-9999.99,0.00016116,2]
[394571788,1763724639220,-150.0,0.00016137,2]
[394571789,1763724639230,-150.0,0.00016137,2]
[394571790,1763724639240,-150.0,0.00016137,2]
[394571791,1763724639250,-150.0,0.00016137,2]
[394571792,1763724639260,-150.0,0.00016137,2]
[394571793,1763724639270,-150.0,0.00016137,2]
[394571794,1763724639279,-150.0,0.00016137,2]
[394571795,1763724639288,-16356.52799709,0.00016161,2]
[394571796,1763724639297,-1561.99,0.00016164,2]
[394571797,1763724639306,-4735.0,0.00016181,2]
[394571798,1763724639315,-5000.0,0.000162,5]
[394571799,1763724639324,-200.0,0.0001621,2]
[394571800,1763724639333,-523.27840915,0.0001623,2]
[394571801,1763724639342,-500.0,0.0001623,2]
[394571802,1763724639352,-502.41011983,0.0001623,2]
[394571803,1763724639361,-500.0,0.0001623,2]
[394571804,1763724639371,-500.0,0.0001623,2]
[394571805,1763724639381,-500.0,0.0001623,2]
[394571806,1763724639389,-381.74,0.00016241,2]
[394571807,1763724639399,-579.038293,0.0001626,2]
[394571808,1763724639408,-16356.52799709,0.00016284,2]
[394571809,1763724639416,-914.01672645,0.00016298,2]
[394571810,1763724639425,-150.0,0.00016307,2]
[394571811,1763724639434,-4735.0,0.00016307,2]
[394571812,1763724639443,-916.0,0.00016349,2]
[394571813,1763724639452,-150.0,0.00016349,2]
[394571814,1763724639461,-273.0,0.00016352,2]
[394571815,1763724639470,-361.0,0.00016371,2]
[394571816,1763724639479,-10537.02578495,0.00016372,2]
[394571817,1763724639489,-293.69938487,0.00016373,2]
[394571818,1763724639498,-275.84527373,0.00016373,2]
[394571819,1763724639507,-152.19317623,0.00016373,2]
[394571820,1763724639516,-150.0,0.00016373,2]
[394571821,1763724639525,-500.0,0.00016373,2]
[394571822,1763724639535,-150.0,0.00016373,2]
[394571823,1763724639544,-150.0,0.00016373,2]
[394571824,1763724639553,-500.0,0.00016373,2]
[394571825,1763724639562,-500.0,0.00016373,2]
[394571826,1763724639572,-500.0,0.00016373,2]
[394571827,1763724639582,-446.0,0.00016373,2]
[394571828,1763724639591,-500.0,0.00016373,2]
[394571829,1763724639601,-150.0,0.00016373,2]
[394571830,1763724639610,-150.0,0.00016373,2]
[394571831,1763724639619,-464.0,0.00016373,2]
[394571832,1763724639628,-500.0,0.00016373,2]
[394571833,1763724639638,-412.71,0.00016393,2]
[394571834,1763724639647,-478.73542746,0.00016394,2]
[394571835,1763724639656,-169.64,0.000164,2]
[394571836,1763724639665,-417.25,0.000164,2]
[394571837,1763724639674,-169.64,0.000164,2]
[394571838,1763724639683,-260.0,0.00016403,2]
[394571839,1763724639693,-16356.52799709,0.00016407,2]
[394571840,1763724639702,-150.0,0.0001642,2]
[394571841,1763724639712,-235.0,0.00016422,2]
[394571842,1763724639722,-1561.99,0.00016438,2]
[394571843,1763724639732,-500.0,0.00016438,2]
[394571844,1763724639743,-500.0,0.00016438,2]
[394571845,1763724639754,-500.0,0.00016438,2]
[394571846,1763724639763,-500.0,0.00016438,2]
[394571847,1763724639772,-500.0,0.00016438,2]
[394571848,1763724639781,-500.0,0.00016438,2]
[394571849,1763724639790,-500.0,0.00016438,2]
[394571850,1763724639799,-500.0,0.00016438,2]
[394571851,1763724639808,-500.0,0.00016438,2]
[394571852,1763724639817,-500.0,0.00016438,2]
[394571853,1763724639826,-500.0,0.00016438,2]
[394571854,1763724639836,-516.10044595,0.00016438,2]
[394571855,1763724639844,-500.0,0.00016438,2]
[394571856,1763724639855,-500.0,0.00016438,2]
[394571857,1763724639864,-500.0,0.00016438,2]
[394571858,1763724639874,-500.0,0.00016438,2]
[394571859,1763724639884,-268.23150905,0.00016438,2]
[394571860,1763724639894,-500.0,0.00016438,2]
[394571861,1763724639903,-150.0,0.00016477,2]
[394571862,1763724639913,-579.038293,0.00016494,2]
[394571863,1763724639922,-417.25,0.000165,2]
[394571864,1763724639931,-417.25,0.000165,2]
[394571865,1763724639940,-169.64,0.000165,2]
[394571866,1763724639949,-169.64,0.000165,2]
[394571867,1763724639958,-500.0,0.00016509,2]
[394571868,1763724639966,-575.01414345,0.00016509,2]
[394571869,1763724639979,-150.0,0.0001651,2]
[394571870,1763724639988,-500.0,0.0001651,2]
[394571871,1763724639999,-150.0,0.0001651,2]
[394571872,1763724640009,-260.04729565,0.0001651,2]
[394571873,1763724640019,-500.0,0.0001651,2]
[394571874,1763724640029,-500.0,0.0001651,2]
[394571875,1763724640038,-500.0,0.0001651,2]
[394571877,1763724640047,-446.0,0.0001651,2]
[394571879,1763724640058,-500.0,0.0001651,2]
[394571880,1763724640067,-150.0,0.0001651,2]
[394571881,1763724640077,-464.0,0.0001651,2]
[394571882,1763724640086,-500.0,0.0001651,2]
[394571883,1763724640095,-16356.52799709,0.0001653,2]
[394571884,1763724640105,-7152.02,0.00016537,2]
[394571885,1763724640114,-479.59,0.00016537,2]
[394571886,1763724640123,-273.0,0.00016553,2]
[394571887,1763724640133,-150.0,0.00016562,2]
[394571888,1763724640143,-150.0,0.00016562,2]
[394571889,1763724640153,-150.0,0.00016562,2]
[394571890,1763724640162,-150.0,0.00016562,2]
[394571891,1763724640172,-150.0,0.00016562,2]
[394571892,1763724640181,-150.0,0.00016562,2]
[394571893,1763724640190,-500.0,0.00016575,2]
[394571894,1763724640199,-500.0,0.00016599,2]
[394571895,1763724640208,-500.0,0.000166,6]
[394571896,1763724640217,-169.64,0.00016609,2]
[394571897,1763724640226,-766.02,0.00016617,2]
[394571898,1763724640237,-417.25,0.00016617,2]
[394571899,1763724640247,-427.78,0.00016617,2]
[394571900,1763724640256,-833.72,0.00016617,2]
[394571901,1763724640265,-417.25,0.00016617,2]
[394571902,1763724640275,-150.0,0.00016647,2]
[394571903,1763724640284,-219.47578265,0.00016647,2]
[394571904,1763724640294,-500.0,0.00016647,2]
[394571905,1763724640305,-150.0,0.00016647,2]
[394571906,1763724640314,-500.0,0.00016647,2]
[394571907,1763724640323,-444.90610537,0.00016647,2]
[394571908,1763724640333,-500.0,0.00016647,2]
[394571909,1763724640342,-446.0,0.00016647,2]
[394571910,1763724640351,-500.0,0.00016647,2]
[394571911,1763724640360,-464.0,0.00016647,2]
[394571912,1763724640369,-500.0,0.00016647,2]
[394571913,1763724640378,-16356.52799709,0.00016654,2]
[394571914,1763724640387,-478.73542746,0.00016695,2]
[394571915,1763724640396,-6828.0,0.00016698,2]
[394571916,1763724640405,-1000.0,0.000167,2]
[394571917,1763724640414,-736.0,0.000167,2]
[394571918,1763724640423,-1815.0,0.000167,2]
[394571919,1763724640433,-1800.0,0.000167,6]
[394571920,1763724640442,-500.0,0.00016712,2]
[394571921,1763724640451,-1561.99,0.00016712,2]
[394571922,1763724640460,-500.0,0.00016712,2]
[394571923,1763724640470,-190.85,0.00016712,2]
[394571924,1763724640479,-500.0,0.00016727,2]
[394571925,1763724640488,-579.038293,0.00016728,2]
[394571926,1763724640497,-1107.44909098,0.00016729,2]
[394571927,1763724640507,-567.45585131,0.00016737,6]
[394571929,1763724640516,-168.91579289,0.00016763,2]
[394571930,1763724640525,-654.02967948,0.00016764,2]
[394571931,1763724640534,-150.0,0.00016774,2]
[394571932,1763724640543,-16356.52799709,0.00016777,2]
[394571933,1763724640552,-500.0,0.00016784,2]
[394571934,1763724640562,-217.28135136,0.00016784,2]
[394571937,1763724640571,-563.53175841,0.00016784,2]
[394571938,1763724640581,-500.0,0.00016784,2]
[394571939,1763724640591,-446.0,0.00016784,2]
[394571940,1763724640600,-500.0,0.00016784,2]
[394571941,1763724640609,-464.0,0.00016784,2]
[394571942,1763724640618,-221.16934993,0.00016784,2]
[394571943,1763724640627,-914.01672645,0.00016799,2]
[394571944,1763724640636,-2500.0,0.000168,6]
[394571945,1763724640645,-150.0,0.00016816,2]
[394571946,1763724640655,-239.0,0.00016826,2]
[394571947,1763724640664,-293.69617,0.0001683,2]
[394571948,1763724640674,-500.0,0.00016849,2]
[394571949,1763724640683,-500.0,0.00016855,2]
[394571950,1763724640692,-96477.776833,0.00016856,2]
[394571951,1763724640701,-500.0,0.00016863,2]
[394571952,1763724640711,-200.0,0.00016863,2]
[394571953,1763724640720,-500.0,0.00016863,2]
[394571954,1763724640729,-500.0,0.00016863,2]
[394571955,1763724640738,-500.0,0.00016864,2]
[394571956,1763724640747,-500.0,0.00016864,2]
[394571957,1763724640757,-500.0,0.00016864,2]
[394571958,1763724640766,-500.0,0.00016864,2]
[394571959,1763724640775,-500.0,0.00016864,2]
[394571960,1763724640784,-500.0,0.00016864,2]
[394571961,1763724640793,-500.0,0.00016864,2]
[394571962,1763724640802,-500.0,0.00016864,2]
[394571963,1763724640811,-500.0,0.00016864,2]
[394571964,1763724640820,-500.0,0.00016864,2]
[394571965,1763724640830,-500.0,0.00016864,2]
[394571966,1763724640840,-200.0,0.00016864,2]
[394571967,1763724640849,-200.0,0.00016864,2]
[394571968,1763724640857,-500.0,0.00016873,2]
[394571969,1763724640867,-161.24389568,0.00016873,2]
[394571970,1763724640876,-1066.92383856,0.00016899,5]
[394571971,1763724640885,-500.0,0.00016899,2]
[394571972,1763724640895,-638.90407634,0.00016899,2]
[394571973,1763724640904,-500.0,0.00016899,2]
[394571974,1763724640913,-679.43091318,0.00016899,2]
[394571975,1763724640922,-500.02129057,0.00016899,2]
[394571976,1763724640931,-300.0,0.00016899,2]
[394571977,1763724640940,-666.0,0.00016899,2]
[394571978,1763724640950,-3100.0,0.000169,6]
[394571979,1763724640959,-2643.3537,0.000169,2]
[394571980,1763724640968,-33353.2067,0.000169,2]
[394571981,1763724640977,-2065.3471377,0.000169,2]
[394571982,1763724640991,-1798005.20284498,0.000169,2]
[394571983,1763724641001,-923.14172004,0.000169,2]
[394571984,1763724641010,-16356.52799709,0.000169,2]
[394571985,1763724641019,-223.69378529,0.000169,2]
[394571986,1763724641030,-268.40142694,0.000169,2]
[394571987,1763724641039,-510.0,0.00016911,2]
[394571988,1763724641049,-500.0,0.00016921,2]
[394571989,1763724641060,-500.0,0.00016921,2]
[394571990,1763724641070,-446.0,0.00016921,2]
[394571991,1763724641079,-500.0,0.00016921,2]
[394571992,1763724641089,-464.0,0.00016921,2]
[394571993,1763724641099,-293.69617,0.0001695,2]
[394571994,1763724641108,-615.0,0.00016959,2]
[394571995,1763724641117,-579.038293,0.00016963,2]
[394571996,1763724641127,-605.29007824,0.00016973,2]
[394571997,1763724641136,-152.13204804,0.00016983,2]
[394571998,1763724641145,-500.0,0.00016983,2]
[394571999,1763724641155,-500.0,0.00016986,2]
[394572000,1763724641164,-1561.99,0.00016986,2]
[394572001,1763724641173,-500.0,0.00016986,2]
[394572002,1763724641183,-150.0,0.00016986,2]
[394572003,1763724641193,-154.17645535,0.00016986,2]
[394572004,1763724641202,-153.62806187,0.00016986,2]
[394572005,1763724641212,-157.49198528,0.00016986,2]
[394572006,1763724641221,-167.96822082,0.00016986,2]
[394572007,1763724641231,-205.82954853,0.00016986,2]
[394572008,1763724641241,-150.0,0.00016986,2]
[394572009,1763724641250,-224.70035689,0.00016986,2]
[394572010,1763724641259,-232.97251994,0.00016986,2]
[394572011,1763724641269,-54744.47,0.00016986,2]
[394572012,1763724641279,-654.02967948,0.0001699,2]
[394572013,1763724641289,-654.02967948,0.0001699,2]
[394572014,1763724641301,-478.73542746,0.00016996,2]
[394572015,1763724641484,-300.0,0.00016998,2]
[394572016,1763724641509,-666.0,0.00016998,2]
[394572017,1763724641518,-500.0,0.00016998,2]
[394572018,1763724641528,-500.0,0.00016999,2]
[394572019,1763724641538,-500.0,0.00016999,2]
[394572020,1763724641547,-500.0,0.00016999,2]
[394572021,1763724641557,-500.0,0.00016999,2]
[394572022,1763724641566,-500.0,0.00016999,2]
[394572023,1763724641575,-500.0,0.00016999,2]
[394572024,1763724641586,-529.11873499,0.00016999,2]
[394572025,1763724641596,-1066.92383856,0.00016999,5]
[394572026,1763724641605,-500.0,0.00016999,2]
[394572027,1763724641614,-500.0,0.00016999,2]
[394572028,1763724641625,-500.0,0.00016999,2]
[394572029,1763724641634,-500.0,0.00016999,2]
[394572030,1763724641643,-500.0,0.00016999,2]
[394572031,1763724641652,-500.0,0.00016999,2]
[394572032,1763724641661,-500.0,0.00016999,2]
[394572033,1763724641670,-500.0,0.00016999,2]
[394572034,1763724641679,-500.0,0.00016999,2]
[394572035,1763724641689,-500.0,0.00016999,2]
[394572036,1763724641699,-500.0,0.00016999,2]
[394572037,1763724641708,-500.0,0.00016999,2]
[394572038,1763724641717,-500.0,0.00016999,2]
[394572039,1763724641727,-500.0,0.00016999,2]
[394572040,1763724641736,-472.19370137,0.00016999,2]
[394572041,1763724641745,-500.0,0.00016999,2]
[394572042,1763724641755,-500.0,0.00016999,2]
[394572043,1763724641764,-500.0,0.00016999,2]
[394572044,1763724641774,-500.0,0.00016999,2]
[394572045,1763724641784,-500.0,0.00016999,2]
[394572046,1763724641795,-500.0,0.00016999,2]
[394572047,1763724641806,-500.0,0.00016999,2]
[394572048,1763724641816,-500.0,0.00016999,2]
[394572049,1763724641827,-500.0,0.00016999,2]
[394572050,1763724641836,-500.0,0.00016999,2]
[394572051,1763724641845,-500.0,0.00016999,2]
[394572052,1763724641855,-500.0,0.00016999,2]
[394572053,1763724641864,-500.0,0.00016999,2]
[394572054,1763724641875,-500.0,0.00016999,2]
[394572055,1763724641885,-500.0,0.00016999,2]
[394572056,1763724641896,-500.0,0.00016999,2]
[394572057,1763724641905,-500.0,0.00016999,2]
[394572058,1763724641915,-500.0,0.00016999,2]
[394572059,1763724641925,-500.0,0.00016999,2]
[394572060,1763724641934,-500.0,0.00016999,2]
[394572061,1763724641943,-450.57085936,0.00016999,2]
[394572062,1763724641953,-500.0,0.00016999,2]
[394572063,1763724641963,-500.0,0.00016999,2]
[394572064,1763724641973,-500.0,0.00016999,2]
[394572065,1763724641988,-500.0,0.00016999,2]
[394572066,1763724641998,-611.60324679,0.00016999,2]
[394572067,1763724642008,-500.0,0.00016999,2]
[394572068,1763724642019,-588.47923029,0.00016999,2]
[394572069,1763724642029,-500.0,0.00016999,2]
[394572070,1763724642039,-500.0,0.00016999,2]
[394572071,1763724642048,-500.0,0.00016999,2]
[394572072,1763724642060,-448.48848381,0.00016999,2]
[394572073,1763724642070,-300.0,0.00016999,2]
[394572074,1763724642081,-300.0,0.00016999,2]
[394572075,1763724642091,-500.0,0.00016999,2]
[394572076,1763724642100,-500.0,0.00016999,2]
[394572077,1763724642110,-500.0,0.00016999,2]
[394572078,1763724642119,-500.0,0.00016999,2]
[394572079,1763724642129,-603.01444382,0.00016999,2]
[394572080,1763724642138,-500.0,0.00016999,2]
[394572081,1763724642148,-500.0,0.00016999,2]
[394572082,1763724642157,-500.0,0.00016999,2]
[394572083,1763724642166,-500.0,0.00016999,2]
[394572084,1763724642176,-500.0,0.00016999,2]
[394572085,1763724642185,-500.0,0.00016999,2]
[394572086,1763724642195,-500.0,0.00016999,2]
[394572087,1763724642204,-229.59787896,0.00016999,2]
[394572088,1763724642215,-726.4216518,0.00016999,2]
[394572089,1763724642225,-623.02752587,0.00016999,2]
[394572090,1763724642235,-500.0,0.00016999,2]
[394572091,1763724642245,-170.54211254,0.00016999,2]
[394572092,1763724642256,-300.0,0.00016999,2]
[394572093,1763724642266,-666.0,0.00016999,2]
[394572094,1763724642276,-300.0,0.00016999,2]
[394572095,1763724642285,-500.0,0.00016999,2]
[394572096,1763724642295,-500.0,0.00016999,2]
[394572097,1763724642304,-500.0,0.00016999,2]
[394572098,1763724642314,-500.0,0.00016999,2]
[394572099,1763724642324,-500.0,0.00016999,2]
[394572100,1763724642334,-254.86830282,0.00016999,2]
[394572101,1763724642344,-300.0,0.00016999,2]
[394572102,1763724642354,-666.0,0.00016999,2]
[394572103,1763724642364,-500.0,0.00016999,2]
[394572104,1763724642374,-216.32674802,0.00016999,2]
[394572105,1763724642383,-666.0,0.00016999,2]
[394572106,1763724642393,-500.0,0.00016999,2]
[394572107,1763724642403,-500.0,0.00016999,2]
[394572108,1763724642414,-500.0,0.00016999,2]
[394572109,1763724642425,-500.0,0.00016999,2]
[394572110,1763724642435,-500.0,0.00016999,2]
[394572111,1763724642445,-500.0,0.00016999,2]
[394572112,1763724642454,-417.54862495,0.00016999,2]
[394572113,1763724642464,-500.0,0.00016999,2]
[394572114,1763724642473,-500.0,0.00016999,2]
[394572115,1763724642482,-500.0,0.00016999,2]
[394572116,1763724642491,-500.0,0.00016999,2]
[394572117,1763724642500,-500.0,0.00016999,2]
[394572118,1763724642509,-500.0,0.00016999,2]
[394572119,1763724642518,-500.0,0.00016999,2]
[394572120,1763724642528,-500.0,0.00016999,2]
[394572121,1763724642537,-500.0,0.00016999,2]
[394572122,1763724642546,-500.0,0.00016999,2]
[394572123,1763724642555,-500.0,0.00016999,2]
[394572124,1763724642565,-500.0,0.00016999,2]
[394572125,1763724642575,-500.0,0.00016999,2]